[Event "November 21 Late 2023"]
[Site "https://www.chess.com"]
[Date "2023.11.21"]
[Round "5"]
[White "Andreikin, Dmitry"]
[Black "Goltsev, Dmitry"]
[Result "1-0"]
[Board "18"]
[TimeControl "180+1"]
[WhiteFideId "4158814"]
[BlackFideId "24176710"]
[WhiteElo "2741"]
[BlackElo "2370"]
[WhiteTeam "FID"]
[BlackTeam "RUS"]
[WhiteClock "0:00:37"]
[BlackClock "0:00:00"]

1. Nc3 {[%clk 0:03:00]}  Nf6 {[%clk 0:02:58]} 2. e4 {[%clk 0:02:59]}  d5 {[%clk 0:02:49]} 3. e5 {[%clk 0:03:00]}  d4 {[%clk 0:02:50]} 4. exf6 {[%clk 0:02:59]}  dxc3 {[%clk 0:02:50]} 5. fxg7 {[%clk 0:02:59]}  cxd2+ {[%clk 0:02:51]} 6. Qxd2 {[%clk 0:03:00]}  Qxd2+ {[%clk 0:02:50]} 7. Bxd2 {[%clk 0:03:01]}  Bxg7 {[%clk 0:02:51]} 8. O-O-O {[%clk 0:03:01]}  Nc6 {[%clk 0:02:50]} 9. Ne2 {[%clk 0:03:02]}  Bf5 {[%clk 0:02:48]} 10. Bc3 {[%clk 0:03:02]}  Bxc3 {[%clk 0:02:47]} 11. Nxc3 {[%clk 0:03:03]}  a6 {[%clk 0:02:46]} 12. g3 {[%clk 0:02:59]}  Bg4 {[%clk 0:02:41]} 13. Rd2 {[%clk 0:02:55]}  Bf3 {[%clk 0:02:40]} 14. Rg1 {[%clk 0:02:54]}  O-O {[%clk 0:02:37]} 15. Rd3 {[%clk 0:02:39]}  Ne5 {[%clk 0:02:32]} 16. Re3 {[%clk 0:02:36]}  f6 {[%clk 0:02:32]} 17. Be2 {[%clk 0:02:28]}  Bxe2 {[%clk 0:02:21]} 18. Rxe2 {[%clk 0:02:29]}  Rad8 {[%clk 0:02:09]} 19. f4 {[%clk 0:02:27]}  Nc6 {[%clk 0:02:08]} 20. Ne4 {[%clk 0:02:23]}  Nd4 {[%clk 0:01:57]} 21. Re3 {[%clk 0:02:21]}  b6 {[%clk 0:01:52]} 22. c3 {[%clk 0:02:17]}  Nf5 {[%clk 0:01:50]} 23. Re2 {[%clk 0:02:17]}  Rd3 {[%clk 0:01:46]} 24. g4 {[%clk 0:02:09]}  Nh4 {[%clk 0:01:20]} 25. Rg3 {[%clk 0:02:06]}  Rfd8 {[%clk 0:01:15]} 26. Nf2 {[%clk 0:02:06]}  Rxg3 {[%clk 0:01:10]} 27. hxg3 {[%clk 0:02:06]}  Ng6 {[%clk 0:01:11]} 28. Kc2 {[%clk 0:02:05]}  e5 {[%clk 0:01:10]} 29. f5 {[%clk 0:01:58]}  Ne7 {[%clk 0:01:10]} 30. Ne4 {[%clk 0:01:58]}  Kg7 {[%clk 0:00:57]} 31. a4 {[%clk 0:01:47]}  h6 {[%clk 0:00:55]} 32. b4 {[%clk 0:01:46]}  Nc8 {[%clk 0:00:45]} 33. a5 {[%clk 0:01:42]}  Nd6 {[%clk 0:00:32]} 34. axb6 {[%clk 0:01:41]}  cxb6 {[%clk 0:00:33]} 35. Rd2 {[%clk 0:01:33]}  Nf7 {[%clk 0:00:33]} 36. Rxd8 {[%clk 0:01:22]}  Nxd8 {[%clk 0:00:34]} 37. c4 {[%clk 0:01:22]}  Nc6 {[%clk 0:00:22]} 38. Kc3 {[%clk 0:01:22]}  b5 {[%clk 0:00:17]} 39. Nc5 {[%clk 0:01:14]}  bxc4 {[%clk 0:00:10]} 40. Kxc4 {[%clk 0:01:15]}  e4 {[%clk 0:00:07]} 41. Nxe4 {[%clk 0:01:02]}  Ne5+ {[%clk 0:00:07]} 42. Kd4 {[%clk 0:01:03]}  Nxg4 {[%clk 0:00:07]} 43. Nc5 {[%clk 0:01:03]}  Kf7 {[%clk 0:00:06]} 44. Nxa6 {[%clk 0:01:03]}  Ke7 {[%clk 0:00:07]} 45. Nc5 {[%clk 0:00:59]}  Kd6 {[%clk 0:00:06]} 46. b5 {[%clk 0:00:59]}  h5 {[%clk 0:00:05]} 47. b6 {[%clk 0:00:52]}  Kc6 {[%clk 0:00:06]} 48. b7 {[%clk 0:00:52]}  Kc7 {[%clk 0:00:06]} 49. Kd5 {[%clk 0:00:50]}  Ne3+ {[%clk 0:00:07]} 50. Ke6 {[%clk 0:00:50]}  Nf1 {[%clk 0:00:07]} 51. Ne4 {[%clk 0:00:41]}  Kxb7 {[%clk 0:00:05]} 52. Kxf6 {[%clk 0:00:41]}  Kc7 {[%clk 0:00:06]} 53. Ke6 {[%clk 0:00:35]}  Kd8 {[%clk 0:00:05]} 54. f6 {[%clk 0:00:35]}  Ke8 {[%clk 0:00:02]} 55. f7+ {[%clk 0:00:36]}  Kf8 {[%clk 0:00:03]} 56. Nf6 {[%clk 0:00:36]}  Nxg3 {[%clk 0:00:00]} 57. Nd7+ {[%clk 0:00:37]} 1-0

[Event "November 21 Late 2023"]
[Site "https://www.chess.com"]
[Date "2023.11.21"]
[Round "5"]
[White "Erigaisi Arjun"]
[Black "Djokic, Mihailo"]
[Result "1-0"]
[Board "19"]
[TimeControl "180+1"]
[WhiteFideId "35009192"]
[BlackFideId "976440"]
[WhiteElo "2729"]
[BlackElo "2265"]
[WhiteTeam "IND"]
[BlackTeam "SRB"]
[WhiteClock "0:00:08"]
[BlackClock "0:00:01"]

1. b3 {[%clk 0:03:00]}  d5 {[%clk 0:02:58]} 2. Bb2 {[%clk 0:03:00]}  Nf6 {[%clk 0:02:59]} 3. e3 {[%clk 0:02:55]}  Bf5 {[%clk 0:02:59]} 4. Nf3 {[%clk 0:02:51]}  h6 {[%clk 0:03:00]} 5. c4 {[%clk 0:02:51]}  e6 {[%clk 0:02:59]} 6. Nc3 {[%clk 0:02:41]}  Be7 {[%clk 0:03:00]} 7. d4 {[%clk 0:02:41]}  O-O {[%clk 0:03:00]} 8. Bd3 {[%clk 0:02:41]}  Bxd3 {[%clk 0:02:59]} 9. Qxd3 {[%clk 0:02:42]}  Nbd7 {[%clk 0:02:53]} 10. g4 {[%clk 0:02:34]}  Bb4 {[%clk 0:02:27]} 11. O-O-O {[%clk 0:02:30]}  Nxg4 {[%clk 0:02:12]} 12. Qe2 {[%clk 0:02:24]}  Qf6 {[%clk 0:02:03]} 13. h3 {[%clk 0:01:57]}  Bxc3 {[%clk 0:01:41]} 14. Bxc3 {[%clk 0:01:43]}  Nxf2 {[%clk 0:01:41]} 15. Qxf2 {[%clk 0:01:43]}  c5 {[%clk 0:01:35]} 16. Kb2 {[%clk 0:01:23]}  dxc4 {[%clk 0:01:24]} 17. dxc5 {[%clk 0:01:21]}  Qe7 {[%clk 0:01:25]} 18. Rhg1 {[%clk 0:01:20]}  f6 {[%clk 0:01:20]} 19. Nh4 {[%clk 0:01:12]}  Rf7 {[%clk 0:01:02]} 20. b4 {[%clk 0:01:05]}  a5 {[%clk 0:01:00]} 21. a3 {[%clk 0:01:00]}  Qe8 {[%clk 0:00:55]} 22. Ra1 {[%clk 0:00:53]}  b6 {[%clk 0:00:47]} 23. c6 {[%clk 0:00:51]}  Ne5 {[%clk 0:00:47]} 24. Bxe5 {[%clk 0:00:51]}  fxe5 {[%clk 0:00:48]} 25. Qg2 {[%clk 0:00:52]}  e4 {[%clk 0:00:45]} 26. Qxe4 {[%clk 0:00:49]}  Rf2+ {[%clk 0:00:39]} 27. Kc3 {[%clk 0:00:49]}  Qe7 {[%clk 0:00:36]} 28. b5 {[%clk 0:00:42]}  Rd8 {[%clk 0:00:33]} 29. Rg6 {[%clk 0:00:31]}  Rd3+ {[%clk 0:00:29]} 30. Kxc4 {[%clk 0:00:31]}  Qc5+ {[%clk 0:00:28]} 31. Kxd3 {[%clk 0:00:31]}  Qc2+ {[%clk 0:00:29]} 32. Kd4 {[%clk 0:00:31]}  Qb2+ {[%clk 0:00:18]} 33. Kc4 {[%clk 0:00:23]}  Rc2+ {[%clk 0:00:16]} 34. Qxc2 {[%clk 0:00:23]}  Qxc2+ {[%clk 0:00:17]} 35. Kd4 {[%clk 0:00:22]}  Qb2+ {[%clk 0:00:17]} 36. Ke4 {[%clk 0:00:19]}  Qxa1 {[%clk 0:00:17]} 37. Rxe6 {[%clk 0:00:19]}  Qb1+ {[%clk 0:00:16]} 38. Ke5 {[%clk 0:00:15]}  Qxb5+ {[%clk 0:00:16]} 39. Kd6 {[%clk 0:00:16]}  Kf7 {[%clk 0:00:12]} 40. Ng6 {[%clk 0:00:07]}  Qc5+ {[%clk 0:00:10]} 41. Kd7 {[%clk 0:00:06]}  Qd5+ {[%clk 0:00:05]} 42. Rd6 {[%clk 0:00:07]}  Qf5+ {[%clk 0:00:05]} 43. Kd8 {[%clk 0:00:07]}  Qg5+ {[%clk 0:00:04]} 44. Kd7 {[%clk 0:00:07]}  Qf5+ {[%clk 0:00:04]} 45. Kc7 {[%clk 0:00:07]}  Qb5 {[%clk 0:00:01]} 46. e4 {[%clk 0:00:06]}  Qa6 {[%clk 0:00:01]} 47. Kd7 {[%clk 0:00:06]}  b5 {[%clk 0:00:01]} 48. c7 {[%clk 0:00:06]}  Qb7 {[%clk 0:00:01]} 49. e5 {[%clk 0:00:06]}  b4 {[%clk 0:00:01]} 50. e6+ {[%clk 0:00:06]}  Kg8 {[%clk 0:00:01]} 51. e7 {[%clk 0:00:07]}  Qb5+ {[%clk 0:00:01]} 52. Kd8 {[%clk 0:00:08]}  Qa6 {[%clk 0:00:01]} 53. e8=Q+ {[%clk 0:00:08]} 1-0

[Event "November 21 Late 2023"]
[Site "https://www.chess.com"]
[Date "2023.11.21"]
[Round "5"]
[White "Firouzja, Alireza"]
[Black "Jakubowski, Krzysztof"]
[Result "1-0"]
[Board "20"]
[TimeControl "180+1"]
[WhiteFideId "12573981"]
[BlackFideId "1112848"]
[WhiteElo "2896"]
[BlackElo "2369"]
[WhiteTeam "FRA"]
[BlackTeam "POL"]
[WhiteClock "0:01:41"]
[BlackClock "0:00:00"]

1. b4 {[%clk 0:02:54]}  d5 {[%clk 0:02:55]} 2. Bb2 {[%clk 0:02:50]}  Qd6 {[%clk 0:02:54]} 3. a3 {[%clk 0:02:35]}  e5 {[%clk 0:02:54]} 4. e3 {[%clk 0:02:35]}  a5 {[%clk 0:02:50]} 5. Nf3 {[%clk 0:02:31]}  e4 {[%clk 0:02:34]} 6. Nd4 {[%clk 0:02:23]}  axb4 {[%clk 0:02:30]} 7. Nb5 {[%clk 0:02:18]}  Qd8 {[%clk 0:02:20]} 8. Be5 {[%clk 0:02:18]}  Na6 {[%clk 0:02:14]} 9. axb4 {[%clk 0:02:16]}  f6 {[%clk 0:00:58]} 10. Nxc7+ {[%clk 0:02:02]}  Nxc7 {[%clk 0:00:45]} 11. Bxc7 {[%clk 0:02:00]}  Rxa1 {[%clk 0:00:42]} 12. Bxd8 {[%clk 0:02:00]}  Kxd8 {[%clk 0:00:27]} 13. Qc1 {[%clk 0:02:00]}  Bd6 {[%clk 0:00:24]} 14. Qb2 {[%clk 0:01:59]}  Be5 {[%clk 0:00:23]} 15. c3 {[%clk 0:01:59]}  Ra7 {[%clk 0:00:22]} 16. Na3 {[%clk 0:01:59]}  Ne7 {[%clk 0:00:21]} 17. Nb5 {[%clk 0:02:00]}  Ra8 {[%clk 0:00:20]} 18. Be2 {[%clk 0:02:01]}  Be6 {[%clk 0:00:19]} 19. O-O {[%clk 0:02:01]}  Kd7 {[%clk 0:00:19]} 20. Ra1 {[%clk 0:02:01]}  Nf5 {[%clk 0:00:13]} 21. h3 {[%clk 0:01:55]}  g6 {[%clk 0:00:12]} 22. Nd4 {[%clk 0:01:55]}  h5 {[%clk 0:00:09]} 23. Bb5+ {[%clk 0:01:54]}  Ke7 {[%clk 0:00:08]} 24. Nxe6 {[%clk 0:01:54]}  Kxe6 {[%clk 0:00:09]} 25. Ra5 {[%clk 0:01:52]}  Nd6 {[%clk 0:00:09]} 26. Be2 {[%clk 0:01:52]}  Rad8 {[%clk 0:00:07]} 27. Qa2 {[%clk 0:01:52]}  Nf5 {[%clk 0:00:06]} 28. c4 {[%clk 0:01:50]}  Kf7 {[%clk 0:00:06]} 29. Rxd5 {[%clk 0:01:47]}  Kg7 {[%clk 0:00:05]} 30. Qa7 {[%clk 0:01:44]}  Ra8 {[%clk 0:00:05]} 31. Qxb7+ {[%clk 0:01:44]}  Kh6 {[%clk 0:00:05]} 32. Rxe5 {[%clk 0:01:45]}  fxe5 {[%clk 0:00:04]} 33. Qxe4 {[%clk 0:01:44]}  Ra2 {[%clk 0:00:02]} 34. Qxe5 {[%clk 0:01:43]}  Rd8 {[%clk 0:00:02]} 35. Bxh5 {[%clk 0:01:43]}  Rdxd2 {[%clk 0:00:00]} 36. Qf4+ {[%clk 0:01:41]} 1-0

[Event "November 21 Late 2023"]
[Site "https://www.chess.com"]
[Date "2023.11.21"]
[Round "5"]
[White "Hakobyan, Aram"]
[Black "Arabidze, Meri"]
[Result "1/2-1/2"]
[Board "21"]
[TimeControl "180+1"]
[WhiteFideId "13306677"]
[BlackFideId "13604040"]
[WhiteElo "2584"]
[BlackElo "2416"]
[WhiteTeam "ARM"]
[BlackTeam "GEO"]
[WhiteClock "0:00:07"]
[BlackClock "0:00:30"]

1. Nf3 {[%clk 0:03:00]}  c5 {[%clk 0:02:59]} 2. b3 {[%clk 0:02:59]}  b6 {[%clk 0:02:59]} 3. Bb2 {[%clk 0:02:55]}  Bb7 {[%clk 0:02:59]} 4. e3 {[%clk 0:02:55]}  Nf6 {[%clk 0:02:59]} 5. g3 {[%clk 0:02:51]}  e6 {[%clk 0:02:57]} 6. Bg2 {[%clk 0:02:52]}  Be7 {[%clk 0:02:57]} 7. O-O {[%clk 0:02:52]}  O-O {[%clk 0:02:57]} 8. d4 {[%clk 0:02:52]}  d5 {[%clk 0:02:57]} 9. Nbd2 {[%clk 0:02:52]}  Nc6 {[%clk 0:02:56]} 10. c4 {[%clk 0:02:53]}  Rc8 {[%clk 0:02:45]} 11. dxc5 {[%clk 0:02:49]}  Bxc5 {[%clk 0:02:45]} 12. a3 {[%clk 0:02:49]}  dxc4 {[%clk 0:02:42]} 13. Nxc4 {[%clk 0:02:48]}  Na5 {[%clk 0:02:31]} 14. Ncd2 {[%clk 0:02:42]}  Be7 {[%clk 0:02:26]} 15. b4 {[%clk 0:02:11]}  Nc4 {[%clk 0:02:26]} 16. Nxc4 {[%clk 0:02:12]}  Rxc4 {[%clk 0:02:26]} 17. Ne5 {[%clk 0:01:52]}  Bxg2 {[%clk 0:02:20]} 18. Nxc4 {[%clk 0:01:25]}  Bxf1 {[%clk 0:02:18]} 19. Qxf1 {[%clk 0:01:26]}  Qa8 {[%clk 0:02:15]} 20. Rc1 {[%clk 0:01:25]}  Rc8 {[%clk 0:02:14]} 21. Ne5 {[%clk 0:01:26]}  h6 {[%clk 0:02:05]} 22. h3 {[%clk 0:01:17]}  h5 {[%clk 0:02:02]} 23. b5 {[%clk 0:01:10]}  Rxc1 {[%clk 0:01:53]} 24. Qxc1 {[%clk 0:01:11]}  Qe4 {[%clk 0:01:38]} 25. Nc6 {[%clk 0:01:01]}  Bc5 {[%clk 0:01:34]} 26. Bxf6 {[%clk 0:00:46]}  gxf6 {[%clk 0:01:35]} 27. Nxa7 {[%clk 0:00:37]}  h4 {[%clk 0:01:35]} 28. gxh4 {[%clk 0:00:33]}  Qxh4 {[%clk 0:01:32]} 29. Qf1 {[%clk 0:00:32]}  Bxa3 {[%clk 0:01:21]} 30. Qg2+ {[%clk 0:00:32]}  Kh7 {[%clk 0:01:16]} 31. Nc6 {[%clk 0:00:31]}  Bd6 {[%clk 0:01:11]} 32. Nd8 {[%clk 0:00:29]}  Qh5 {[%clk 0:01:06]} 33. Qb7 {[%clk 0:00:28]}  Qg6+ {[%clk 0:00:56]} 34. Kh1 {[%clk 0:00:20]}  Qb1+ {[%clk 0:00:56]} 35. Kg2 {[%clk 0:00:21]}  Qg6+ {[%clk 0:00:55]} 36. Kf3 {[%clk 0:00:11]}  Qf5+ {[%clk 0:00:55]} 37. Kg2 {[%clk 0:00:10]}  Qg6+ {[%clk 0:00:55]} 38. Kf1 {[%clk 0:00:08]}  Qd3+ {[%clk 0:00:53]} 39. Kg1 {[%clk 0:00:07]}  Qg6+ {[%clk 0:00:53]} 40. Qg2 {[%clk 0:00:05]}  Qb1+ {[%clk 0:00:47]} 41. Qf1 {[%clk 0:00:05]}  Qg6+ {[%clk 0:00:47]} 42. Qg2 {[%clk 0:00:05]}  Qb1+ {[%clk 0:00:47]} 43. Qf1 {[%clk 0:00:06]}  Qg6+ {[%clk 0:00:47]} 44. Kh1 {[%clk 0:00:07]}  Qe4+ {[%clk 0:00:33]} 45. Qg2 {[%clk 0:00:05]}  Qb1+ {[%clk 0:00:33]} 46. Qg1 {[%clk 0:00:06]}  Qe4+ {[%clk 0:00:31]} 47. Qg2 {[%clk 0:00:06]}  Qb1+ {[%clk 0:00:30]} 48. Qg1 {[%clk 0:00:06]}  Qe4+ {[%clk 0:00:30]} 49. Qg2 {[%clk 0:00:07]} 1/2-1/2

[Event "November 21 Late 2023"]
[Site "https://www.chess.com"]
[Date "2023.11.21"]
[Round "5"]
[White "Chigaev, Maksim"]
[Black "TheKnightOfBosnia"]
[Result "1-0"]
[Board "27"]
[TimeControl "180+1"]
[WhiteFideId "4108116"]
[WhiteElo "2561"]
[BlackElo "2617"]
[WhiteTeam "ESP"]
[WhiteClock "0:00:35"]
[BlackClock "0:00:00"]

1. d4 {[%clk 0:03:00]}  Nf6 {[%clk 0:02:59]} 2. c4 {[%clk 0:03:01]}  e6 {[%clk 0:03:00]} 3. g3 {[%clk 0:03:01]}  d5 {[%clk 0:02:59]} 4. Bg2 {[%clk 0:03:01]}  Be7 {[%clk 0:03:00]} 5. Nf3 {[%clk 0:03:01]}  O-O {[%clk 0:03:00]} 6. O-O {[%clk 0:03:02]}  Nbd7 {[%clk 0:03:00]} 7. b3 {[%clk 0:03:00]}  a5 {[%clk 0:02:59]} 8. Nc3 {[%clk 0:03:00]}  c6 {[%clk 0:02:59]} 9. Qd3 {[%clk 0:02:58]}  Re8 {[%clk 0:02:53]} 10. e4 {[%clk 0:02:58]}  dxe4 {[%clk 0:02:52]} 11. Nxe4 {[%clk 0:02:57]}  c5 {[%clk 0:02:45]} 12. Nxf6+ {[%clk 0:02:51]}  Bxf6 {[%clk 0:02:44]} 13. Be3 {[%clk 0:02:29]}  a4 {[%clk 0:02:39]} 14. Rad1 {[%clk 0:02:25]}  axb3 {[%clk 0:02:38]} 15. axb3 {[%clk 0:02:26]}  Qc7 {[%clk 0:02:31]} 16. Rfe1 {[%clk 0:02:19]}  Ra2 {[%clk 0:01:48]} 17. Ng5 {[%clk 0:01:58]}  g6 {[%clk 0:01:33]} 18. Ne4 {[%clk 0:01:56]}  Be7 {[%clk 0:01:23]} 19. dxc5 {[%clk 0:01:40]}  Nxc5 {[%clk 0:01:24]} 20. Bxc5 {[%clk 0:01:38]}  Bxc5 {[%clk 0:01:19]} 21. Nf6+ {[%clk 0:01:36]}  Kf8 {[%clk 0:01:16]} 22. Nxe8 {[%clk 0:01:32]}  Bxf2+ {[%clk 0:01:14]} 23. Kh1 {[%clk 0:01:25]}  Kxe8 {[%clk 0:01:15]} 24. Rf1 {[%clk 0:01:16]}  Bc5 {[%clk 0:00:57]} 25. Rd2 {[%clk 0:01:08]}  Rxd2 {[%clk 0:00:52]} 26. Qxd2 {[%clk 0:01:08]}  Kf8 {[%clk 0:00:29]} 27. b4 {[%clk 0:01:01]}  Be7 {[%clk 0:00:27]} 28. c5 {[%clk 0:01:01]}  Kg8 {[%clk 0:00:25]} 29. Qf4 {[%clk 0:00:59]}  Qxf4 {[%clk 0:00:20]} 30. gxf4 {[%clk 0:00:52]}  Kf8 {[%clk 0:00:18]} 31. Ra1 {[%clk 0:00:51]}  Ke8 {[%clk 0:00:17]} 32. Ra8 {[%clk 0:00:52]}  Kd7 {[%clk 0:00:17]} 33. Ra7 {[%clk 0:00:35]}  Kc7 {[%clk 0:00:00]} 34. c6 {[%clk 0:00:35]} 1-0

[Event "November 21 Late 2023"]
[Site "https://www.chess.com"]
[Date "2023.11.21"]
[Round "5"]
[White "Skatchkov, Valery"]
[Black "Ibarra Jerez, Jose Carlos"]
[Result "0-1"]
[Board "29"]
[TimeControl "180+1"]
[WhiteFideId "24195812"]
[BlackFideId "2226332"]
[WhiteElo "2320"]
[BlackElo "2634"]
[WhiteTeam "RUS"]
[BlackTeam "ESP"]
[WhiteClock "0:00:03"]
[BlackClock "0:00:34"]

1. d4 {[%clk 0:03:00]}  Nf6 {[%clk 0:02:56]} 2. c4 {[%clk 0:02:56]}  d6 {[%clk 0:02:57]} 3. Nc3 {[%clk 0:02:49]}  e5 {[%clk 0:02:56]} 4. Nf3 {[%clk 0:02:49]}  e4 {[%clk 0:02:57]} 5. Nd2 {[%clk 0:02:35]}  Qe7 {[%clk 0:02:56]} 6. Qc2 {[%clk 0:02:25]}  Bf5 {[%clk 0:02:55]} 7. f3 {[%clk 0:02:25]}  c5 {[%clk 0:02:56]} 8. d5 {[%clk 0:02:07]}  Nbd7 {[%clk 0:02:09]} 9. Ndxe4 {[%clk 0:01:58]}  Bxe4 {[%clk 0:02:09]} 10. fxe4 {[%clk 0:01:58]}  g6 {[%clk 0:02:07]} 11. Bf4 {[%clk 0:01:43]}  a6 {[%clk 0:02:05]} 12. h3 {[%clk 0:01:33]}  Nh5 {[%clk 0:02:03]} 13. Bh2 {[%clk 0:01:31]}  Qh4+ {[%clk 0:02:02]} 14. Kd1 {[%clk 0:01:31]}  Ng3 {[%clk 0:01:58]} 15. Rg1 {[%clk 0:01:31]}  Bg7 {[%clk 0:01:57]} 16. Qd3 {[%clk 0:01:30]}  Be5 {[%clk 0:01:56]} 17. Bxg3 {[%clk 0:01:19]}  Bxg3 {[%clk 0:01:54]} 18. Kc2 {[%clk 0:01:18]}  O-O {[%clk 0:01:53]} 19. e3 {[%clk 0:01:14]}  Ne5 {[%clk 0:01:27]} 20. Qd2 {[%clk 0:01:13]}  f5 {[%clk 0:01:17]} 21. exf5 {[%clk 0:01:11]}  Rxf5 {[%clk 0:01:15]} 22. b3 {[%clk 0:01:01]}  Rf2 {[%clk 0:01:10]} 23. Be2 {[%clk 0:01:01]}  b5 {[%clk 0:01:10]} 24. cxb5 {[%clk 0:00:59]}  axb5 {[%clk 0:01:10]} 25. Nxb5 {[%clk 0:00:51]}  c4 {[%clk 0:01:08]} 26. Nc3 {[%clk 0:00:47]}  cxb3+ {[%clk 0:01:01]} 27. axb3 {[%clk 0:00:47]}  Rc8 {[%clk 0:01:02]} 28. Kb2 {[%clk 0:00:32]}  Nd7 {[%clk 0:00:56]} 29. Ra4 {[%clk 0:00:30]}  Qf6 {[%clk 0:00:54]} 30. Rc4 {[%clk 0:00:27]}  Nc5 {[%clk 0:00:53]} 31. Ra1 {[%clk 0:00:17]}  Be5 {[%clk 0:00:50]} 32. b4 {[%clk 0:00:15]}  Bxc3+ {[%clk 0:00:41]} 33. Qxc3 {[%clk 0:00:10]}  Rxe2+ {[%clk 0:00:41]} 34. Kb1 {[%clk 0:00:05]}  Qf1+ {[%clk 0:00:34]} 35. Qc1 {[%clk 0:00:03]}  Re1 {[%clk 0:00:34]} 0-1

[Event "November 21 Late 2023"]
[Site "https://www.chess.com"]
[Date "2023.11.21"]
[Round "5"]
[White "Zarnicki, Pablo"]
[Black "Tang, Andrew"]
[Result "0-1"]
[Board "30"]
[TimeControl "180+1"]
[WhiteFideId "100137"]
[BlackFideId "2059630"]
[WhiteElo "2468"]
[BlackElo "2589"]
[WhiteTeam "ARG"]
[BlackTeam "USA"]
[WhiteClock "0:00:00"]
[BlackClock "0:00:09"]

1. e4 {[%clk 0:02:53]}  e5 {[%clk 0:02:56]} 2. Nc3 {[%clk 0:02:53]}  Nc6 {[%clk 0:02:54]} 3. Nf3 {[%clk 0:02:52]}  Nf6 {[%clk 0:02:54]} 4. d4 {[%clk 0:02:53]}  exd4 {[%clk 0:02:54]} 5. Nxd4 {[%clk 0:02:54]}  Nxe4 {[%clk 0:02:54]} 6. Nxe4 {[%clk 0:02:46]}  Qe7 {[%clk 0:02:53]} 7. Bd3 {[%clk 0:02:44]}  Nxd4 {[%clk 0:02:53]} 8. O-O {[%clk 0:02:42]}  Ne6 {[%clk 0:02:50]} 9. f4 {[%clk 0:02:38]}  f5 {[%clk 0:02:40]} 10. Ng5 {[%clk 0:02:27]}  g6 {[%clk 0:02:28]} 11. Re1 {[%clk 0:02:07]}  Bg7 {[%clk 0:02:19]} 12. Qe2 {[%clk 0:02:07]}  O-O {[%clk 0:01:49]} 13. Bc4 {[%clk 0:01:58]}  Re8 {[%clk 0:01:45]} 14. c3 {[%clk 0:01:45]}  h6 {[%clk 0:01:29]} 15. Nxe6 {[%clk 0:01:41]}  dxe6 {[%clk 0:01:30]} 16. Be3 {[%clk 0:01:39]}  c5 {[%clk 0:01:19]} 17. Rad1 {[%clk 0:01:37]}  Bd7 {[%clk 0:01:17]} 18. Bf2 {[%clk 0:01:35]}  Rad8 {[%clk 0:01:15]} 19. Rxd7 {[%clk 0:01:23]}  Rxd7 {[%clk 0:01:04]} 20. Qxe6+ {[%clk 0:01:21]}  Kh7 {[%clk 0:01:00]} 21. Qxe7 {[%clk 0:00:48]}  Rexe7 {[%clk 0:00:58]} 22. Rxe7 {[%clk 0:00:49]}  Rxe7 {[%clk 0:00:59]} 23. Bxc5 {[%clk 0:00:49]}  Re1+ {[%clk 0:01:00]} 24. Kf2 {[%clk 0:00:49]}  Rb1 {[%clk 0:01:00]} 25. Ba3 {[%clk 0:00:27]}  Bf6 {[%clk 0:00:56]} 26. Kf3 {[%clk 0:00:24]}  Kg7 {[%clk 0:00:46]} 27. h3 {[%clk 0:00:24]}  Rc1 {[%clk 0:00:36]} 28. Bb3 {[%clk 0:00:21]}  Rf1+ {[%clk 0:00:33]} 29. Ke3 {[%clk 0:00:20]}  Bh4 {[%clk 0:00:27]} 30. g4 {[%clk 0:00:18]}  Bg3 {[%clk 0:00:26]} 31. Bd6 {[%clk 0:00:16]}  fxg4 {[%clk 0:00:24]} 32. Be5+ {[%clk 0:00:16]}  Kf8 {[%clk 0:00:24]} 33. hxg4 {[%clk 0:00:16]}  g5 {[%clk 0:00:25]} 34. Ke2 {[%clk 0:00:15]}  Rg1 {[%clk 0:00:22]} 35. Bd4 {[%clk 0:00:12]}  Rb1 {[%clk 0:00:18]} 36. fxg5 {[%clk 0:00:12]}  hxg5 {[%clk 0:00:17]} 37. Bxa7 {[%clk 0:00:12]}  Rxb2+ {[%clk 0:00:17]} 38. Kf3 {[%clk 0:00:12]}  Bd6 {[%clk 0:00:18]} 39. Ke4 {[%clk 0:00:12]}  Be7 {[%clk 0:00:13]} 40. Kf5 {[%clk 0:00:12]}  Rb1 {[%clk 0:00:11]} 41. Be3 {[%clk 0:00:11]}  Rf1+ {[%clk 0:00:09]} 42. Kg6 {[%clk 0:00:11]}  Rf6+ {[%clk 0:00:10]} 43. Kh5 {[%clk 0:00:10]}  Rc6 {[%clk 0:00:09]} 44. c4 {[%clk 0:00:05]}  Kg7 {[%clk 0:00:09]} 45. Bd4+ {[%clk 0:00:06]}  Bf6 {[%clk 0:00:09]} 46. Be3 {[%clk 0:00:00]}  Rc8 {[%clk 0:00:09]} 0-1

[Event "November 21 Late 2023"]
[Site "https://www.chess.com"]
[Date "2023.11.21"]
[Round "5"]
[White "Beerdsen, Thomas"]
[Black "Leiva, Gianmarco"]
[Result "1-0"]
[Board "33"]
[TimeControl "180+1"]
[WhiteFideId "1030108"]
[BlackFideId "3804399"]
[WhiteElo "2550"]
[BlackElo "2335"]
[WhiteTeam "NED"]
[BlackTeam "PER"]
[WhiteClock "0:01:50"]
[BlackClock "0:00:04"]

1. e4 {[%clk 0:03:00]}  g6 {[%clk 0:02:54]} 2. d4 {[%clk 0:03:01]}  Bg7 {[%clk 0:02:55]} 3. Nc3 {[%clk 0:03:01]}  d6 {[%clk 0:02:55]} 4. Bg5 {[%clk 0:03:02]}  Nf6 {[%clk 0:02:53]} 5. e5 {[%clk 0:03:02]}  Nfd7 {[%clk 0:02:52]} 6. exd6 {[%clk 0:03:02]}  cxd6 {[%clk 0:02:53]} 7. Qd2 {[%clk 0:03:03]}  Qa5 {[%clk 0:02:37]} 8. Nf3 {[%clk 0:03:00]}  Nf6 {[%clk 0:02:27]} 9. O-O-O {[%clk 0:02:57]}  Bg4 {[%clk 0:02:25]} 10. Bb5+ {[%clk 0:02:53]}  Nbd7 {[%clk 0:02:23]} 11. Bh6 {[%clk 0:02:47]}  Bxh6 {[%clk 0:02:15]} 12. Qxh6 {[%clk 0:02:48]}  Bxf3 {[%clk 0:02:14]} 13. gxf3 {[%clk 0:02:48]}  a6 {[%clk 0:02:14]} 14. Bxd7+ {[%clk 0:02:46]}  Kxd7 {[%clk 0:02:14]} 15. Rhe1 {[%clk 0:02:42]}  Rac8 {[%clk 0:01:38]} 16. Re3 {[%clk 0:02:37]}  Qh5 {[%clk 0:01:30]} 17. Qf4 {[%clk 0:02:36]}  Qf5 {[%clk 0:01:25]} 18. Qg3 {[%clk 0:02:29]}  Rc4 {[%clk 0:01:18]} 19. Rde1 {[%clk 0:02:21]}  e6 {[%clk 0:01:17]} 20. Ne4 {[%clk 0:02:21]}  Nxe4 {[%clk 0:01:08]} 21. fxe4 {[%clk 0:02:21]}  Qa5 {[%clk 0:01:06]} 22. d5 {[%clk 0:01:51]}  Rhc8 {[%clk 0:00:57]} 23. dxe6+ {[%clk 0:01:52]}  fxe6 {[%clk 0:00:57]} 24. R1e2 {[%clk 0:01:53]}  Qxa2 {[%clk 0:00:54]} 25. Ra3 {[%clk 0:01:53]}  Rxc2+ {[%clk 0:00:31]} 26. Rxc2 {[%clk 0:01:54]}  Rxc2+ {[%clk 0:00:31]} 27. Kxc2 {[%clk 0:01:54]}  Qc4+ {[%clk 0:00:32]} 28. Rc3 {[%clk 0:01:55]}  Qe2+ {[%clk 0:00:30]} 29. Kb1 {[%clk 0:01:52]}  Qe1+ {[%clk 0:00:26]} 30. Ka2 {[%clk 0:01:51]}  Qxe4 {[%clk 0:00:25]} 31. Qd3 {[%clk 0:01:49]}  Qa4+ {[%clk 0:00:20]} 32. Kb1 {[%clk 0:01:50]}  Qf4 {[%clk 0:00:19]} 33. Qc4 {[%clk 0:01:50]}  Qf5+ {[%clk 0:00:17]} 34. Rc2 {[%clk 0:01:50]}  Ke7 {[%clk 0:00:07]} 35. Qc7+ {[%clk 0:01:50]}  Kf6 {[%clk 0:00:08]} 36. Qxd6 {[%clk 0:01:51]}  Qe4 {[%clk 0:00:07]} 37. Qf8+ {[%clk 0:01:51]}  Kg5 {[%clk 0:00:07]} 38. Qd8+ {[%clk 0:01:49]}  Kh6 {[%clk 0:00:07]} 39. Qd2+ {[%clk 0:01:49]}  Kg7 {[%clk 0:00:06]} 40. f3 {[%clk 0:01:49]}  Qf5 {[%clk 0:00:05]} 41. Kc1 {[%clk 0:01:48]}  g5 {[%clk 0:00:05]} 42. Rc7+ {[%clk 0:01:49]}  Kg6 {[%clk 0:00:05]} 43. Qc2 {[%clk 0:01:50]}  h5 {[%clk 0:00:04]} 44. Qxf5+ {[%clk 0:01:50]} 1-0